Cogmind - Beta 16.1 @@@ ROGUE MODE // 2026.03.19 @ 21:00:01 Player: Ez Result: Destroyed by as-62964 with Assembled Blade Performance ------------- Evolutions (0) 0 Regions Visited (2) 400 Robots Destroyed (6) 30 Value Destroyed (111) 111 Prototype IDs (1) 20 Alien Tech Used (0) 0 Bonus (-126) -126 TOTAL SCORE: 435 Bonus ------- Friendly Fire -126 Cogmind --------- Core Integrity 0/250 Matter 203/300 Energy 100/100 System Corruption 4% Temperature Cool (0) Movement Core (700) Ox13 Location -10/Mines Parts ------- > --- POWER (1) -------- (None) > --- PROPULSION (2) --- (None) > --- UTILITY (2) ------ High-capacity Storage Unit > --- WEAPON (2) ------- (None) > --- INVENTORY (20) --- Heat Sink Small Storage Unit Huge Storage Unit Sensor Array Signal Interpreter Datajack Peak State ------------ > --- POWER ------------ Ion Engine > --- PROPULSION ------- Light Treads Light Treads > --- UTILITY ---------- High-capacity Storage Unit Thief Drone Bay > --- WEAPON ----------- Assault Rifle Rocket Launcher > --- INVENTORY -------- Ion Engine Heat Sink Small Storage Unit Huge Storage Unit Sensor Array Signal Interpreter Assault Rifle Datajack [Rating: 14] Favorites ----------- Power Ion Engine Engine Ion Engine Propulsion Light Treads Treads Light Treads Utility High-capacity Storage Unit Device Thief Drone Bay Storage High-capacity Storage Unit Weapon Assault Rifle Ballistic Gun Assault Rifle Launcher Rocket Launcher Build | -11 -10 -10 ------- Run | Yrd Mat Min Slots Evolved . | . . . Power . | . . . Propulsion . | . . . Utility . | . . . Weapon . | . . . Parts Attached 13 | 5 5 3 Power 2 | . 1 1 Engine 2 | . 1 1 Core . | . . . Reactor . | . . . Propulsion 2 | 2 . . Treads 2 | 2 . . Leg . | . . . Wheel . | . . . Hover . | . . . Flight . | . . . Utility 6 | 1 4 1 Device 3 | . 2 1 Storage 3 | 1 2 . Processor . | . . . Hackware . | . . . Protection . | . . . Artifact . | . . . Weapon 3 | 2 . 1 Energy Gun . | . . . Energy Cannon . | . . . Ballistic Gun 2 | 2 . . Ballistic Cannon . | . . . Launcher 1 | . . 1 Special Weapon . | . . . Impact Weapon . | . . . Slashing Weapon . | . . . Piercing Weapon . | . . . Special Melee Weapon . | . . . Unidentified Prototypes 1 | . . 1 Parts Lost 8 | . . 8 Power 2 | . . 2 Propulsion 2 | . . 2 Utility 1 | . . 1 Weapon 3 | . . 3 Highest Loss Streak 8 | . . 8 To Critical Strikes 1 | . . 1 Average Backups 4 | 1 2 6 Power . | . . . Propulsion . | . . . Utility 2 | . 1 4 Weapon . | . . . Tool/Special . | . . . Unused Backups 3 | . 1 2 Power . | . . . Propulsion 1 | . 1 . Utility 1 | . . 1 Weapon . | . . . Tool/Special 1 | . . 1 Average Slot Usage (%) 96 | . 95 97 Engine 12 | . 11 13 Treads 27 | . 28 27 Device 12 | . 12 13 Storage 14 | . 14 14 Ballistic Gun 27 | . 28 26 Peak Build Rating 14 | 5 7 14 Average Rating 8 | 3 6 12 On Entrance 4 | . 5 7 Avg Prop Armor Cover (%) . | . . . Naked Turns . | . . . Heaviest Build 90 | 9 90 55 Greatest Support 40 | 40 40 40 Greatest Overweight (x) 2 | . 2 2 Average Overweight (x) . | . 1 1 Largest Inventory Capacity 25 | 8 25 20 Average Capacity 20 | 7 21 20 Most Carried 8 | 5 6 8 Average Carried 4 | 1 2 6 Final Capacity 20 | 8 20 20 Final Carried 6 | 1 5 6 Class Distribution -------------------- 100% | Mutant Dominant Class ---------------- Mutant | -10/Materials Mutant | -10/Mines Resources | -11 -10 -10 ----------- Run | Yrd Mat Min Matter Collected 343 | 224 86 33 Remotely . | . . . Salvage Created 237 | . 145 92 Parts 9 | . 9 . Haulers Intercepted . | . . . Recyclers Shooed . | . . . Parts Field Recycled . | . . . Retrieved Matter . | . . . Parts Self-Destructed . | . . . Prevented . | . . . Parts Restored . | . . . Kills | -11 -10 -10 ------- Run | Yrd Mat Min Combat Hostiles Destroyed 18 | . 5 13 Guns 6 | . 5 1 AOE 12 | . . 12 Classes Destroyed 3 | . 2 1 Swarmer 3 | . 3 . Grunt 2 | . 2 . Assembled 13 | . . 13 Thug 1 | . . 1 Best Kill Streak 13 | . 3 13 Combat Bots Only 13 | . 3 13 Max Kills in Single Turn 5 | . 1 5 Gunslinging . | . . . Exploded 5 | . . 5 Melee . | . . . Uniques/NPCs Destroyed . | . . . Combat | -11 -10 -10 -------- Run | Yrd Mat Min Hostile Shots Fired 94 | . 22 72 Missed 22 | . 6 16 Hits 72 | . 16 56 Melee 12 | . . 12 Projectile 60 | . 16 44 Critical Strikes 2 | . . 2 Damage Taken 1261 | . 231 1030 Core 264 | . 25 239 Absorbed by Shields . | . . . Core Remaining (%) 100 | 100 . . Volleys Fired 17 | . 9 8 Largest 2 | . 2 2 Hottest 53 | . 40 53 Shots Fired 31 | . 18 13 Gun 26 | . 18 8 Cannon . | . . . Launcher 5 | . . 5 Special . | . . . Kinetic 26 | . 18 8 Thermal . | . . . Explosive 5 | . . 5 Electromagnetic . | . . . Robot Hit Streak 13 | . 13 5 Robot Miss Streak 2 | . 1 2 Penetration Max . | . . . Secondary Targets . | . . . Shots Hit Robots 21 | . 13 8 Core Hits 34 | . 8 26 Critical Kills . | . . . Critical Parts Destroyed . | . . . Critical Strikes . | . . . Melee Attacks . | . . . Impact . | . . . Slashing . | . . . Piercing . | . . . Sneak Attacks . | . . . Combat Hostiles . | . . . Follow-up Attacks . | . . . Damage Inflicted 1097 | . 159 938 Guns 207 | . 159 48 Cannons . | . . . Explosions 888 | . . 888 Melee . | . . . Ramming 2 | . . 2 Kinetic 207 | . 159 48 Thermal . | . . . Explosive 888 | . . 888 Electromagnetic . | . . . Impact . | . . . Slashing . | . . . Piercing . | . . . Highest Corruption 4 | . . 4 Average Corruption 2 | . . 2 Corruption Purged . | . . . Corruption Blocked . | . . . Overload Shots . | . . . Overflow Damage 28 | . . 28 Projectiles . | . . . Explosions 28 | . . 28 Melee . | . . . Knockbacks . | . . . Impact . | . . . Kinetic . | . . . Secondary . | . . . Self-Inflicted Damage 62 | . . 62 Shots 2 | . . 2 Rammed 1 | . . 1 Targets Rammed 1 | . . 1 Kicked . | . . . Crushed . | . . . Highest Temperature 28 | . . 28 Average Temperature 18 | . . 18 Received Heat Transfer 94 | . 54 40 Siege Activations . | . . . Martial Activations . | . . . Shielding Activations . | . . . Robots Disrupted . | . . . Combat Hostiles . | . . . Robots Corrupted . | . . . Combat Hostiles . | . . . Parts Fried . | . . . Impact Corruptions . | . . . Robots Melted . | . . . Combat Hostiles . | . . . Parts Melted . | . . . Heat Transferred . | . . . Parts Sabotaged . | . . . Parts Stolen . | . . . Parts Stripped . | . . . Power Chain Reactions . | . . . Alert | -11 -10 -10 ------- Run | Yrd Mat Min Maximum Alert Level . | . . . Low Security (%) 100 | 100 100 100 Level 1 . | . . . Level 2 . | . . . Level 3 . | . . . Level 4 . | . . . Level 5 . | . . . High Security . | . . . Max Security . | . . . Peak Influence 97 | . 97 21 Initial . | . . . Average 12 | . 23 . Influence Increases 190 | . 169 21 Destroy 0b10 Robot/C 100 | . 100 . Destroy Leader 20 | . 20 . Successful Hack 18 | . 18 . Destroy Structure 22 | . 1 21 Lose Combat Pursuer 30 | . 30 . Influence Decreases 190 | . 169 21 Time Decay 177 | . 169 8 Lost Part 13 | . . 13 Squads Dispatched . | . . . Investigation . | . . . Extermination . | . . . Reinforcement . | . . . Assault . | . . . Garrison . | . . . Intercept . | . . . Searches Triggered . | . . . Construction Impeded . | . . . Haulers Reinforced . | . . . Active Scanning Responses . | . . . Cargo Convoy Interrupts . | . . . Stealth | -11 -10 -10 --------- Run | Yrd Mat Min Distress Signals . | . . . Communications Jammed . | . . . Distress Signals . | . . . Times Spotted 29 | . 11 18 Peak Tracking Total 15 | . 3 15 Tactical Retreats 1 | . 1 . Traps | -11 -10 -10 ------- Run | Yrd Mat Min Traps Triggered 1 | . 1 . Indirectly . | . . . Trap Hack Attempts . | . . . Triggered . | . . . Disarmed . | . . . Reprogrammed . | . . . Reused . | . . . Traps Extracted . | . . . Installed . | . . . Triggered . | . . . Machines | -11 -10 -10 ---------- Run | Yrd Mat Min Machines Disabled . | . . . Max in Single Turn . | . . . Machines Repaired . | . . . Machines Dismantled . | . . . Machines Sabotaged . | . . . Overloaded Fab Kills . | . . . Hacking | -11 -10 -10 --------- Run | Yrd Mat Min Machines Accessed 4 | . 3 1 Terminals 3 | . 3 . Fabricators . | . . . Repair Stations . | . . . Recycling Units . | . . . Scanalyzers . | . . . Garrison Access . | . . . Total Hacks 5 | . 4 1 Successful 4 | . 3 1 Failed 1 | . 1 . Catastrophic . | . . . Database Lockouts . | . . . Manual 4 | . 4 . Terminals 4 | . 4 . Fabricators . | . . . Repair Stations . | . . . Recycling Units . | . . . Scanalyzers . | . . . Garrison Access . | . . . Terminal Hacks 1 | . . 1 Open Door 1 | . . 1 Fabricator Hacks . | . . . Repair Station Hacks . | . . . Recycling Unit Hacks . | . . . Scanalyzer . | . . . Garrison Access Hacks . | . . . Unauthorized Hacks 3 | . 3 . Terminals 3 | . 3 . Assimilate 3 | . 3 . Fabricators . | . . . Repair Stations . | . . . Recycling Units . | . . . Scanalyzers . | . . . Garrison Access . | . . . Data Cores Recovered . | . . . Used . | . . . Hacking Detections 3 | . 3 . Full Trace Events . | . . . Feedback Events . | . . . Feedback Blocked . | . . . Robot Schematics Acquired . | . . . Robots Built . | . . . Authchips . | . . . Time . | . . . Total Robot Build Rating . | . . . Part Schematics Acquired . | . . . Parts Built . | . . . Authchips . | . . . Time . | . . . Total Part Build Rating . | . . . Part Studies Acquired . | . . . Parts Repaired . | . . . Time . | . . . Parts Recycled . | . . . Recycled Matter . | . . . Retrieved Matter . | . . . Retrieved Components . | . . . Parts Scanalyzed . | . . . Part Schematics Acquired . | . . . Parts Damaged . | . . . Bothacking | -11 -10 -10 ------------ Run | Yrd Mat Min Used RIF Installer . | . . . Robots Hacked . | . . . Non-combat . | . . . Combat . | . . . Robot Hacks Applied . | . . . Relay Couplers Released . | . . . Fabnet Peak Effective % . | . . . Robots Rewired . | . . . Allies Hacked . | . . . Hacks Repelled . | . . . Allies | -11 -10 -10 -------- Run | Yrd Mat Min Total Allies 2 | . . 2 Largest Group 2 | . . 2 Highest-Rated Group 43 | . . 43 Highest-Rated Ally 31 | . . 31 Total Orders . | . . . Ally Attacks 4 | . . 4 Total Damage 63 | . . 63 Kills 1 | . . 1 Allies Corrupted . | . . . Allies Melted . | . . . Intel | -11 -10 -10 ------- Run | Yrd Mat Min Active Infowar (turns) 135 | . 98 37 Sensors 135 | . 98 37 Robot Analysis Total . | . . . Derelict Logs Recovered 1 | . . 1 Drone Launches . | . . . Drone Recoveries . | . . . Exploration | -11 -10 -10 ------------- Run | Yrd Mat Min Turns Passed 1202 | 61 630 511 Spaces Moved 418 | 41 182 195 Core 13 | 13 . . Treads 405 | 28 182 195 Legs . | . . . Wheels . | . . . Hover . | . . . Flight . | . . . Fastest Speed 50 | 50 160 240 Average Speed 233 | 125 249 240 Slowest Speed 320 | 160 320 320 Overloaded Moves . | . . . Propulsion Burnouts . | . . . Robots Hopped . | . . . Potential Cave-ins . | . . . Cave-ins Triggered . | . . . Exploration Rate (%) 25 | 4 32 40 Regions Visited 2 Branch Regions 1 Pre-discovered Areas . | . . . Known Exits Taken . | . . . Unknown Exits Taken 2 | 1 1 . Scrap Searched 1 | . . 1 Spaces Dug . | . . . Terrain Destroyed 24 | . . 24 Melee . | . . . Projectile . | . . . AOE 24 | . . 24 Terrain Rammed . | . . . Walls Destroyed . | . . . Machines Disabled . | . . . Actions | -11 -10 -10 --------- Run | Yrd Mat Min Total 613 | 51 340 222 Wait 148 | . 137 11 Move 416 | 40 181 195 Hop . | . . . Pick Up 14 | 6 5 3 Fast Attach 1 | . 1 . Attach 9 | 5 2 2 Detach 1 | . 1 . Swap 5 | . 3 2 Drop 1 | . 1 . Fire 17 | . 9 8 Melee . | . . . Ram . | . . . Kick . | . . . Crush 1 | . . 1 Escape Stasis . | . . . Rewire . | . . . Trap . | . . . Miscellaneous . | . . . Route ------- -11/Scrapyard -10/Materials -10/Mines (discovered 1 exit: [*Mat]) History --------- Turn | Location | Event 24 | -11/Scrapyard | Discovered new exit (range 16) 62 | -11/Scrapyard | Entered Materials 300 | -10/Materials | Build established: Mutant 633 | -10/Materials | Discovered new exit (range 8) 692 | -10/Materials | Entered Mines 692 | -10/Mines | Discovered new exit (range 6) 717 | -10/Mines | Found the Drone Emporium 728 | -10/Mines | Found Prototype Device 729 | -10/Mines | Identified Thief Drone Bay 762 | -10/Mines | Learned Materials emergency access door positions 1113 | -10/Mines | Received a Rocket Launcher from a helpful Derelict 1152 | -10/Mines | Assembled infested the area 1191 | -10/Mines | Destroyed 13 combat bots 1195 | -10/Mines | Core integrity fell below 50% 1201 | -10/Mines | Core integrity fell below 20% 1203 | -10/Mines | Destroyed by as-62964 with Assembled Blade Last Messages --------------- JQ-4GX(g) destroyed. [Achievement: Backstab] as-23747 destroyed. as-39815 destroyed. as-91890 destroyed. Ion Engine destroyed. Rocket Launcher destroyed. Assault Rifle destroyed. U-05 Engineer knocked back. The unstable cave ceiling collapses. U-05 Engineer destroyed. Lgt. Treads destroyed. Assault Rifle destroyed. System corrupted by crushing effect (+1). Critical hit (Destroy). Lgt. Treads destroyed. Ion Engine destroyed. Thief Drone Bay destroyed. System corrupted by crushing effect (+3). Knocked back. Map ----- +----------------------------------------------------+ | ##??????????????????????????????????????? | | #??????????????????????????????????????? | | #?????????????????????????????????????? | | #?????????????????????????????????????? | | ##?????????????????????????????????????? | | ###??????????????????????????????????????? | | ### ##????????????????????????????????????????? | | ??#####?????????????????????????????????????????? | | ????????????????????????????????????????????????? | | ????????????????????????????????????????????????? | | ????????????? ??????????????????????????????????? | | ????????????? ?????????????????????????????????? | | ????????? ???" ?????????????????????????????????? | | ???????? """ ?????????????????????????????????? | | ????????? """ ?????????????????????????????????? | | ?????????? #????????????????????????????????? | | ??????????? ##??????????????????????????????? | | ?? #??????? #??????????????????????????????? | | #????????? #??????????????????????????????? | | #??????????? ?????####?????????????????????? | | #?????????????# #????## ##????????????????????? | | ????????####### #????# ##???????????????????? | | #??????## ###### #???????????????????? | | #?????## #???????????????????? | | ####??# a ##??????????????????? | | #??# ##### @a ###????????????????? | | ## #??##### ## ##???##*! a ## #????????? | | ?# #####??#???# ##?????##%a a #????????? | | ?# #??????# #???????#### #???????? | | ?##### #??????# #?????????# #??????? | | ?????# #??????# #?????????## #??????? | | ?????# #??????# #??????????? ##??????? | | ???### ##?????# #??????????? % #???????? | | ???# ##????# #???????????# #??????? | | ???## ##???# #???????????? % #??????? | | ????### ##??# #????????????# ???????? | | ??????## #### #????????????? ???????? | | ???????## ## #?????????????## ????????? | | ????????## #???????????????# %%????????? | | ?????????## #????????????????# #%??????????? | | ??????????########??????????????????????????????? | | ????????????????????????????????????????????????? | | ????????????????????????????????????????????????? | | ????????????????????????????????????????????????? | | ????????????????????????????????????????????????? | | ????????????????????????????????????????????????? | | ????????????????????????????????????????????????? | | ????????????????????????????????????????????????? | | ????????????????????????????????????????????????? | | ????????????????????????????????????????????????? | +----------------------------------------------------+ Best States ------------- Heat Dissipation 35 Energy Generation 10 Energy Capacity 250 Matter Stores 300 Matter Capacity 300 Sight Range 16 Robot Scan Range 14 Terrain Scan Density 10 Evasion (%) 50 Recoil Reduction 2 Item Schematics ----------------- None Robot Schematics ------------------ None Fabricated ------------ Nothing Repaired ---------- Nothing Studied --------- None Alien Tech Used ----------------- None Achievements -------------- Backstab Challenges ------------ None Game ------ Seed SiegeHeavyCharger Manual? 0 Play Time 00:11:50 Cumulative 24.1 hours Start 2026.03.18 @ 18:02:44 End 2026.03.19 @ 21:00:01 Sessions 3 Manual Loads 0 Difficulty Rogue Special Mode None Game No. 73 Rogue 71 Adventurer 2 Explorer 0 Win Type - Total 0 Types 0/0/0/0/0/0/0/0/0/0 Lore% 7 Gallery% 17 Achievement% 15 Wizard Run 0 Options --------- Layout 1 ASCII 0 Keyboard 0 Movement Mouse Keybinds 0 Fullscreen 2 Font 32/SmallcapsGlow Map View 50x35 Zoom Use 0% Tactical HUD 0 Map Filters NONE Filters NONE Steam 1 RUN: 6fdfe8de-0838-4b04-a0cb-c6b022d12e4a